lending/lending_fUSD_20240705
["ID","MTS","AMOUNT","RATE_DAILY","PERIOD"]
[331316457,1720213837058,-600.0,0.00017181,2]
[331316458,1720213837067,-150.15,0.00017198,2]
[331316459,1720213837078,-505.35,0.00017261,2]
[331316460,1720213837088,-150.15,0.00017273,2]
[331316461,1720213837098,-150.15,0.00017348,2]
[331316462,1720213837108,-150.15,0.00017422,2]
[331316463,1720213837118,-150.15,0.00017497,2]
[331316464,1720213837127,-978.4295,0.00017508,2]
[331316465,1720213837137,-150.15,0.00017572,2]
[331316466,1720213837147,-150.15,0.00017646,2]
[331316467,1720213837156,-150.15,0.00017721,2]
[331316468,1720213837166,-150.15,0.00017796,2]
[331316469,1720213837176,-150.0,0.00017803,2]
[331316470,1720213837186,-150.15,0.0001787,2]
[331316471,1720213837196,-150.15,0.00017945,2]
[331316472,1720213837206,-150.15,0.0001802,2]
[331316473,1720213837217,-429.07,0.00018082,2]
[331316474,1720213837226,-424.44,0.00018082,2]
[331316475,1720213837236,-709.37,0.00018082,2]
[331316476,1720213837247,-354.94,0.00018082,2]
[331316477,1720213837258,-150.15,0.00018095,2]
[331316478,1720213837268,-509.13242177,0.00018474,2]
[331316479,1720213837277,-434.93719891,0.00018649,2]
[331316480,1720213837287,-227.17477303,0.00018717,2]
[331316481,1720213837298,-500.0,0.00018749,2]
[331316482,1720213837308,-3271.17585529,0.0001879,2]
[331316483,1720213837317,-150.0,0.00018792,2]
[331316484,1720213837329,-220.28,0.00018795,3]
[331316485,1720213837338,-617.8558,0.00018799,2]
[331316486,1720213837348,-2362.45793388,0.000188,2]
[331316487,1720213837358,-11479.3243,0.000188,2]
[331316488,1720213837368,-30681.4943,0.000188,2]
[331316489,1720213837379,-170.35002007,0.000188,2]
[331316490,1720213837388,-179.25993919,0.000188,2]
[331316491,1720213837398,-7500.0,0.000188,2]
[331316492,1720213837408,-316.27074557,0.000188,2]
[331316493,1720213837419,-700.0,0.000188,6]
[331316494,1720213837439,-300.0,0.00018899,2]
[331316495,1720213837451,-300.0,0.00018899,2]
[331316496,1720213837461,-300.0,0.00018899,2]
[331316497,1720213837472,-289.05185947,0.00018899,2]
[331316500,1720213837482,-500.0,0.00018899,2]
[331316503,1720213837492,-500.0,0.00018899,2]
[331316506,1720213837503,-500.0,0.00018899,2]
[331316508,1720213837512,-455.88745652,0.00018899,2]
[331316509,1720213837522,-500.0,0.00018899,2]
[331316510,1720213837532,-724.0,0.000189,2]
[331316511,1720213837543,-806377.43210279,0.000189,2]
[331316512,1720213837560,-465839.25180374,0.000189,2]
[331316513,1720213837570,-491.0,0.000189,2]
[331316514,1720213837592,-1400.0,0.000189,6]
[331316515,1720213837614,-152.12,0.000189,2]
[331316516,1720213837637,-152.12,0.000189,2]
[331316517,1720213837661,-354.94,0.00018904,2]
[331316518,1720213837685,-404.59,0.00018904,2]
[331316519,1720213837707,-412.8,0.00018904,2]
[331316520,1720213837729,-191.58954384,0.00018946,2]
[331316521,1720213837747,-5000.0,0.00018963,2]
[331316522,1720213837760,-300.0,0.00018999,2]
[331316523,1720213837770,-300.0,0.00018999,2]
[331316524,1720213837780,-300.0,0.00018999,2]
[331316525,1720213837789,-5000.0,0.00019,2]
[331316526,1720213837799,-35241.98821058,0.00019,2]
[331316527,1720213837812,-882.33461522,0.00019,2]
[331316528,1720213837823,-735.06296937,0.00019,2]
[331316529,1720213837835,-316.49048467,0.00019,2]
[331316530,1720213839899,-1011.53545459,0.00013574,2]
[331316536,1720213841597,-1865.31663727,0.00013574,2]
[331316537,1720213841607,-176.59021447,0.000188,2]
[331316539,1720213841618,-4636.13982109,0.00019,2]
[331316541,1720213841631,-264.0773975,0.00019,2]
[331316543,1720213841643,-456.60486029,0.00019,2]
[331316547,1720213842142,-1146.80056203,0.00019,2]
[331316551,1720213842958,-288.40183904,0.00019,2]
[331316554,1720213842972,-1314.20919046,0.00019,2]
[331316557,1720213842984,-10615.37532106,0.00019,2]
[331316572,1720213843719,-5991.99303999,0.00019,2]
[331316576,1720213843731,-565.99524606,0.00019,2]
[331316578,1720213843743,-252.99891992,0.00019,2]
[331317033,1720214290399,155.0,0.00011199,2]
[331317035,1720214361040,155.0,0.00011199,2]
[331317036,1720214364668,7553.1211251,0.00011199,2]
[331317037,1720214374710,1367.01150639,0.00011199,2]
[331317038,1720214375164,290.46265469,0.00011199,2]
[331317039,1720214379035,8341.25410495,0.00011199,2]
[331317040,1720214741085,1247.36037009,0.00011199,2]
[331317302,1720214926840,944.47198158,0.00011199,2]
[331317305,1720215032058,447.64794776,0.00011199,2]
[331317329,1720215033139,-690.28734422,0.00012302,2]
[331317330,1720215033150,-782.38376346,0.00013027,2]
[331317331,1720215033160,-300.0,0.00013127,2]
[331317332,1720215033169,-155.4136306,0.00013128,2]
[331317333,1720215033178,-3222.91526172,0.00013128,2]
[331317334,1720215033191,-1579.98943442,0.00013128,2]
[331317335,1720215033200,-155.0,0.00013574,2]
[331317336,1720215033210,-420.0,0.00014394,2]
[331317337,1720215033220,-1444.0751,0.00015184,2]
[331317338,1720215033229,-474.23,0.00015284,2]
[331317339,1720215033239,-499.99,0.00016716,2]
[331317340,1720215033249,-7066.72971196,0.00016716,2]
[331317341,1720215033261,-447.64794776,0.00016716,2]
[331317342,1720215033344,-27.77234028,0.00016716,2]
[331317343,1720215033354,-435.31,0.00016717,2]
[331317344,1720215033363,-546.075,0.00016717,2]
[331317345,1720215033372,-291.0,0.00016717,2]
[331317346,1720215033383,-213.532,0.00016717,2]
[331317347,1720215033407,-19825.08026331,0.00016717,2]
[331317348,1720215033422,-609.69473669,0.00016717,2]
[331317349,1720215033431,-415.63847198,0.00017026,2]
[331317350,1720215033443,-1014.94152802,0.00017026,2]
[331317351,1720215033462,-999.99,0.00017034,2]
[331317352,1720215033483,-224.9,0.00017034,2]
[331317353,1720215033494,-150.0,0.00017062,2]
[331317354,1720215033504,-1027.37,0.00017063,2]
[331317355,1720215033514,-2113.31570316,0.00017075,2]
[331317370,1720215039317,-743.53478048,0.00017075,2]
[331317371,1720215040124,-21043.14951636,0.00017075,2]
[331317373,1720215040134,-250.0,0.00017081,2]
[331317375,1720215040145,-303.95,0.00017171,2]
[331317377,1720215040156,-3640.36936391,0.00017205,2]
[331317379,1720215040170,-1194.65517,0.00017205,2]
[331317381,1720215040183,-1242.69192714,0.00017205,2]
[331317384,1720215040196,-1085.8962,0.00017205,2]
[331317386,1720215040208,-446.9083603,0.00017205,2]
[331317388,1720215040220,-40.37897865,0.00017205,2]
[331317390,1720215040231,-250.0,0.00017234,2]
[331317392,1720215040241,-876.21,0.00017234,2]
[331317394,1720215040252,-290.45,0.00017462,2]
[331317396,1720215040263,-474.23,0.00017548,2]
[331317398,1720215040274,-1044.23102135,0.000176,2]
[331317400,1720215040287,-730.55901636,0.000176,2]
[331317402,1720215040299,-360.20996229,0.000176,2]
[331317404,1720215040313,-224.9,0.00017629,2]
[331317406,1720215040325,-153.63,0.00017727,2]
[331317409,1720215040336,-1000.0,0.00017836,2]
[331317410,1720215040346,-322.26872653,0.00018081,2]
[331317412,1720215040359,-384.77028012,0.00018654,2]
[331317414,1720215040369,-1630.1845532,0.00018717,2]
[331317416,1720215040380,-111.36342681,0.00018739,2]
[331317419,1720215040393,-561.19964207,0.00018739,2]
[331317421,1720215040404,-162.33447912,0.00018764,2]
[331317423,1720215040414,-500.0,0.000188,2]
[331317425,1720215040424,-170.39,0.00018849,30]
[331317427,1720215040435,-450.24027991,0.00018864,2]
[331317429,1720215040444,-244.62743291,0.00018864,2]
[331317431,1720215040455,-832.75211407,0.00018899,5]
[331317433,1720215040466,-227.17477303,0.00018899,2]
[331317435,1720215040476,-206.26827404,0.00018899,2]
[331317437,1720215040486,-24529.83632521,0.000189,2]
[331317439,1720215040498,-753.50015,0.000189,2]
[331317441,1720215040510,-630.32,0.000189,2]
[331317535,1720215041426,-415.89850002,0.000189,2]
[331317549,1720215041550,-19908.39152477,0.000189,2]
[331317551,1720215041560,-29110.2073,0.000189,2]
[331317553,1720215041570,-152.54482885,0.000189,2]
[331317555,1720215041579,-320.93062954,0.000189,2]
[331317557,1720215041588,-169.492388,0.00018904,2]
[331317559,1720215041598,-354.94,0.00018904,2]
[331317561,1720215041608,-354.94,0.00018904,2]
[331317563,1720215041618,-354.94,0.00018904,2]
[331317565,1720215041627,-354.94,0.00018904,2]
[331317567,1720215041638,-150.0,0.00018904,2]
[331317569,1720215041648,-365.05601346,0.00018919,2]
[331317571,1720215041658,-152.13,0.0001899,2]
[331317573,1720215041669,-1607.60830694,0.00018999,2]
[331317575,1720215041679,-150.01,0.00018999,2]
[331317577,1720215041688,-972.0257901,0.00018999,2]
[331317580,1720215041699,-576.07236635,0.00018999,2]
[331317582,1720215041708,-18110.89025719,0.00019,2]
[331317584,1720215041719,-5646.57884,0.00019,2]
[331317586,1720215041731,-88039.09353172,0.00019,2]
[331317588,1720215041742,-24653.95106231,0.00019,2]
[331317590,1720215041751,-155.0,0.00019,2]
[331317592,1720215041761,-491.0,0.00019,2]
[331317594,1720215041769,-1000.0,0.00019,2]
[331317596,1720215041779,-1000.0,0.00019,2]
[331317598,1720215041789,-1000.0,0.00019,2]
[331317600,1720215041798,-1000.0,0.00019,2]
[331317602,1720215041810,-1000.0,0.00019,2]
[331317604,1720215041820,-1000.0,0.00019,2]
[331317606,1720215041829,-1000.0,0.00019,2]
[331317608,1720215041839,-1000.0,0.00019,2]
[331317610,1720215041849,-1000.0,0.00019,2]
[331317612,1720215041859,-1000.0,0.00019,2]
[331317614,1720215041869,-1000.0,0.00019,2]
[331317616,1720215041878,-1000.0,0.00019,2]
[331317618,1720215041887,-1000.0,0.00019,2]
[331317620,1720215041897,-1000.0,0.00019,2]
[331317622,1720215041906,-1000.0,0.00019,2]
[331317623,1720215041916,-1000.0,0.00019,2]
[331317625,1720215041925,-1000.0,0.00019,2]
[331317627,1720215041934,-1000.0,0.00019,2]
[331317629,1720215041944,-1000.0,0.00019,2]
[331317631,1720215041954,-1000.0,0.00019,2]
[331317633,1720215041963,-1000.0,0.00019,2]
[331317635,1720215041973,-1000.0,0.00019,2]
[331317637,1720215041983,-1000.0,0.00019,2]
[331317639,1720215041992,-163.47041426,0.00019,2]
[331317641,1720215042001,-31781.84314321,0.00019,2]
[331317642,1720215042013,-215173.43790854,0.00019,2]
[331317643,1720215042023,-5000.0,0.00019,2]
[331317644,1720215042033,-300.0,0.00019,2]
[331317645,1720215042044,-5229.52527654,0.00019005,2]
[331317646,1720215042053,-5000.0,0.00019005,2]
[331317647,1720215042063,-5000.0,0.00019005,2]
[331317648,1720215042073,-5000.0,0.00019005,2]
[331317649,1720215042082,-5000.0,0.00019005,2]
[331317650,1720215042092,-363.95360909,0.00019069,2]
[331317651,1720215042101,-264.59136094,0.00019069,2]
[331317652,1720215042112,-155.0,0.00019069,2]
[331317653,1720215042122,-8679.4478,0.00019072,2]
[331317654,1720215042131,-1000.0,0.00019078,2]
[331317655,1720215042141,-359.06627926,0.00019177,2]
[331317656,1720215042150,-155.0,0.00019177,2]
[331317657,1720215042160,-250.0,0.00019178,2]
[331317659,1720215042170,-200.0,0.00019178,2]
[331317661,1720215042180,-183.0,0.00019178,2]
[331317663,1720215042190,-500.0,0.000192,7]
[331317664,1720215042204,-296.98016859,0.00019352,2]
[331317667,1720215042215,-1973.13061173,0.00019451,2]
[331317669,1720215042226,-1000.0,0.000195,3]
[331317671,1720215042237,-1000.0,0.000195,3]
[331317673,1720215042247,-366.19666682,0.00019565,2]
[331317675,1720215042256,-152.54482883,0.00019625,2]
[331317677,1720215042267,-1000.0,0.000197,3]
[331317678,1720215042278,-453.15868833,0.00019725,2]
[331317681,1720215042287,-169.492388,0.00019726,2]
[331317682,1720215042297,-196.21,0.00019726,2]
[331317684,1720215042307,-300.45,0.00019726,2]
[331317687,1720215042318,-215.0,0.000198,2]
[331317689,1720215042328,-600.0,0.000198,7]
[331317691,1720215042339,-152358.18432879,0.000198,3]
[331317703,1720215042525,-819.68910007,0.000198,3]
[331317704,1720215042536,-441.24,0.000198,3]
[331317733,1720215045725,4843.75134966,0.00011199,2]
[331317819,1720215048206,-296.92053615,0.00013574,2]
[331317820,1720215048216,-115.25476575,0.00018999,2]
[331317821,1720215048330,-78.05536246,0.00018999,2]
[331317822,1720215048341,-486.01289505,0.00018999,2]
[331317823,1720215048351,-2533.63863614,0.000198,3]
[331317826,1720215048916,-359.06627926,0.00019077,2]
[331317827,1720215048926,-61.39108845,0.000198,3]
[331317828,1720215048939,-732.93558875,0.000198,3]
[331317833,1720215049250,-1916.16068385,0.000198,3]
[331317834,1720215049262,-13851.68852095,0.000198,3]
[331317836,1720215049271,-474.23,0.00019812,2]
[331317838,1720215049281,-175.44425438,0.00019855,2]
[331317840,1720215049291,-28785.8213244,0.0001988,3]
[331317841,1720215049300,-28785.8213244,0.0001989,3]
[331317843,1720215049310,-300.0,0.00019899,2]
[331317845,1720215049319,-500.0,0.00019899,2]
[331317847,1720215049329,-500.0,0.00019899,2]
[331317848,1720215049338,-180.54395863,0.00019899,2]
[331317849,1720215049347,-497.72822381,0.00019899,2]
[331317850,1720215049357,-500.0,0.00019899,2]
[331317851,1720215049367,-500.0,0.00019899,2]
[331317852,1720215049377,-500.0,0.00019899,2]
[331317853,1720215049388,-500.0,0.00019899,2]
[331317854,1720215049398,-500.0,0.00019899,2]
[331317855,1720215049409,-500.0,0.00019899,2]
[331317856,1720215049418,-500.0,0.00019899,2]
[331317857,1720215049428,-500.0,0.00019899,2]
[331317858,1720215049437,-500.0,0.00019899,2]
[331317859,1720215049447,-500.0,0.00019899,2]
[331317860,1720215049456,-624.57263178,0.00019899,2]
[331317861,1720215049465,-500.0,0.00019899,2]
[331317862,1720215049474,-500.0,0.00019899,2]
[331317863,1720215049484,-500.0,0.00019899,2]
[331317864,1720215049493,-500.0,0.00019899,2]
[331317865,1720215049503,-560.46605659,0.00019899,2]
[331317866,1720215049512,-1200.0,0.000199,7]
[331317867,1720215049521,-136705.526467,0.000199,3]
[331317868,1720215049531,-14392.9106622,0.00019951,3]
[331317869,1720215049540,-250.36506396,0.00019955,2]
[331317870,1720215049550,-13670.5526467,0.0001996,3]
[331317871,1720215049559,-14392.9106622,0.0001997,3]
[331317872,1720215049569,-27341.1052933,0.0001997,3]
[331317873,1720215049579,-14392.9106622,0.00019978,3]
[331317874,1720215049588,-28785.8213244,0.0001998,3]
[331317875,1720215049598,-13670.5526467,0.0001998,3]
[331317876,1720215049607,-300.0,0.00019989,2]
[331317877,1720215049617,-300.0,0.00019989,2]
[331317878,1720215049626,-28785.8213244,0.0001999,3]
[331317879,1720215049636,-27341.1052933,0.0001999,3]
[331317880,1720215049645,-235.02396127,0.0001999,2]
[331317881,1720215049654,-290.89568695,0.00019997,2]
[331317882,1720215049666,-870.46224466,0.0002,2]
[331317883,1720215049675,-327.53175215,0.0002,2]
[331317884,1720215049685,-1363.54098633,0.0002,2]
[331317885,1720215049694,-9279.00149408,0.0002,2]
[331317886,1720215049703,-156.03660824,0.0002,2]
[331317887,1720215049713,-5900.0,0.0002,7]
[331317888,1720215049735,-1699.96825437,0.0002,3]
[331317889,1720215049745,-6279.51081998,0.0002,2]
[331317890,1720215049757,-155.9397392,0.0002,2]
[331317891,1720215049767,-257.0,0.0002,2]
[331317892,1720215049776,-706.93267207,0.0002,2]
[331317893,1720215049789,-339.64668115,0.0002,7]
[331317894,1720215049798,-1158.0,0.0002,4]
[331317895,1720215049808,-155.0,0.0002,2]
[331317896,1720215049818,-224.6932323,0.0002,2]
[331317897,1720215049828,-1250.0,0.0002,2]
[331317898,1720215049838,-150.0,0.0002,2]
[331317899,1720215049848,-245.40337538,0.0002,2]
[331317900,1720215049857,-245.40337538,0.0002,2]
[331317901,1720215049868,-245.40337538,0.0002,2]
[331317902,1720215049878,-245.40337538,0.0002,2]
[331317903,1720215049888,-245.40337538,0.0002,2]
[331317904,1720215049898,-245.40337538,0.0002,2]
[331317905,1720215049907,-245.40337538,0.0002,2]
[331317906,1720215049917,-245.40337538,0.0002,2]
[331317907,1720215049927,-245.40337538,0.0002,2]
[331317908,1720215049937,-245.40337538,0.0002,2]
[331317909,1720215049947,-245.40337538,0.0002,2]
[331317910,1720215049956,-245.40337538,0.0002,2]
[331317911,1720215049966,-245.40337538,0.0002,2]
[331317912,1720215049976,-1000.0,0.00020066,2]
[331317913,1720215049986,-164.36347925,0.0002008,2]
[331317914,1720215049995,-7500.0,0.0002009,2]
[331317915,1720215050005,-1000.0,0.0002009,2]
[331317916,1720215050014,-150.0,0.00020097,2]
[331317933,1720215050024,-13670.5526467,0.00020151,3]
[331317937,1720215050346,-14392.9106622,0.0002016,3]
[331317939,1720215050356,-13670.5526467,0.0002016,3]
[331317941,1720215050368,-28785.8213244,0.0002017,3]
[331317943,1720215050378,-2254.04804023,0.0002018,3]
[331317957,1720215389398,453.09541711,0.00011199,2]
[331317958,1720215391002,301.98418289,0.00011199,2]
[331317961,1720215534277,2661.2597159,0.000112,2]
[331317988,1720216236589,-2799.99,0.0001358,2]
[331317993,1720216236608,-8985.53520002,0.0001358,2]
[331318022,1720216239114,-7154.33630497,0.0001358,2]
[331318023,1720216239128,-504.3514221,0.0001358,2]
[331318045,1720216240205,-523.5974776,0.0001358,2]
[331318046,1720216240254,-20178.73100091,0.0001358,2]
[331318047,1720216240264,-155.02805161,0.000139,2]
[331318048,1720216240274,-347.48215325,0.000139,2]
[331318049,1720216240284,-9834.49020633,0.0001399,2]
[331318050,1720216240294,-746.81,0.0001399,2]
[331318051,1720216240304,-746.81,0.0001399,2]
[331318052,1720216240314,-252244.10234389,0.00014,2]
[331318053,1720216240326,-3108.12795836,0.00014,2]
[331318054,1720216240338,-40707.02348922,0.00014,2]
[331318055,1720216240348,-14755.23,0.00014,2]
[331318056,1720216240358,-10103.0,0.00014409,2]
[331318057,1720216240368,-500.0,0.000149,5]
[331318058,1720216240378,-219.52211462,0.000149,2]
[331318059,1720216240387,-314.61458282,0.000149,2]
[331318060,1720216240398,-150.0,0.00014959,2]
[331318061,1720216240408,-746.81,0.0001499,2]
[331318062,1720216240418,-746.81,0.0001499,2]
[331318063,1720216240428,-746.81,0.0001499,2]
[331318064,1720216240438,-299.99,0.00014999,2]
[331318065,1720216240447,-120763.68027367,0.00015,2]
[331318093,1720216241487,-1139.11643078,0.00015,2]
[331318095,1720216241501,-11338.36342012,0.00015,2]
[331318098,1720216241512,-24166.92499929,0.00015,2]
[331318100,1720216241524,-736.10038563,0.00015,2]
[331318102,1720216241535,-1182.3902614,0.00015,2]
[331318104,1720216241547,-17280.51154448,0.00015,2]
[331318106,1720216241559,-364.58602246,0.00015,2]
[331318109,1720216241570,-1986.9533982,0.00015,2]
[331318111,1720216241581,-454.77031928,0.00015,2]
[331318113,1720216241592,-299.62584991,0.00015,2]
[331318227,1720216245777,-289.60000006,0.0001399,3]
[331318266,1720216247698,-240.94999994,0.0001399,3]
[331318267,1720216247708,-947.40000006,0.00015,2]
[331318268,1720216247719,-2570.41893268,0.00015,2]
[331318269,1720216247732,-380.37468551,0.00015,2]
[331318270,1720216247743,-487.94323696,0.00015,2]
[331318271,1720216247754,-2661.2597159,0.00015,2]
[331318272,1720216247766,-274.44557909,0.00015,2]
[331318282,1720216437567,453.09541711,0.00011199,2]
[331318283,1720216437599,7494.96889435,0.00011199,2]
[331318284,1720216499057,1265.01058332,0.00011199,2]
[331318285,1720216502438,665.56549359,0.00011199,2]
[331318286,1720216535828,1903.65279599,0.00011199,2]
[331318287,1720216668191,155.0,0.00011199,2]
[331318288,1720216693396,263.61281146,0.00011199,2]
[331318289,1720217155724,3037.806753,0.00011199,2]
[331318330,1720217432759,-270.03107511,0.00013128,2]
[331318332,1720217432775,-26.92365224,0.00013128,2]
[331318334,1720217432785,-363.75372231,0.00013472,2]
[331318336,1720217432795,-689.73177959,0.00013574,2]
[331318337,1720217432805,-684.90615013,0.00013574,2]
[331318338,1720217432814,-435.662197,0.00014775,2]
[331318339,1720217432823,-18122.32151119,0.0001485,2]
[331318340,1720217432835,-27035.23396943,0.0001485,2]
[331318341,1720217432845,-292.0253584,0.000149,2]
[331318342,1720217432856,-43043.79737775,0.00015,2]
[331318343,1720217432867,-9299.18366164,0.00015,2]
[331318352,1720217438511,-1567.583997,0.00015,2]
[331318354,1720217440526,-18833.78282386,0.00015,2]
[331318470,1720217445254,-586.44,0.00015,2]
[331318471,1720217445265,-1827.46106843,0.00015,2]
[331318473,1720217446556,-543.2888,0.00015,2]
[331318500,1720217447250,-3397.93999999,0.00015,2]
[331318501,1720217447262,-1858.3075,0.00015,2]
[331318502,1720217447273,-701.11,0.00015,2]
[331318513,1720217448902,-13501.70307668,0.00015,2]
[331318521,1720217449270,-525.1847472,0.00015,2]
[331318609,1720217450093,-8543.1469363,0.00015,2]
[331318720,1720217717089,894.6473847,0.00011199,2]
[331318721,1720217717407,20.42912041,0.00011199,2]
[331318722,1720217778825,690.10215601,0.00011199,2]
[331318723,1720217877055,276.15184313,0.00011199,2]
[331318724,1720217899067,155.0,0.00011199,2]
[331318725,1720218222886,386.94605046,0.00011199,2]
[331318726,1720218239164,352.90432574,0.00011199,2]
[331318727,1720218392456,155.0,0.00011199,2]
[331318736,1720218561275,264.06161066,0.00011199,2]
[331318743,1720218632454,-189.23515969,0.00012302,2]
[331318744,1720218632463,-615.2003602,0.00013474,2]
[331318745,1720218632477,-1326.8037398,0.00013474,2]
[331318746,1720218632487,-1630.1845532,0.00013516,2]
[331318747,1720218632496,-1290.98825509,0.00013516,2]
[331318748,1720218632637,-339.19629811,0.00013516,2]
[331318750,1720218632646,-160.80370189,0.00013989,2]
[331318753,1720218632658,-66.37107114,0.00013989,2]
[331318755,1720218632667,-206.26827404,0.00014099,2]
[331318757,1720218632676,-476.41,0.00014421,2]
[331318759,1720218632685,-470.72181117,0.00014543,2]
[331318761,1720218632694,-6989.22891365,0.0001499,2]
[331318763,1720218632726,-327.39805379,0.0001499,2]
[331318765,1720218632737,-256.269,0.0001499,2]
[331318767,1720218632749,-519.12035809,0.0001499,2]
[331318805,1720218643175,-490.39151482,0.0001499,2]
[331318807,1720218644352,-658.39,0.0001499,2]
[331318810,1720218644366,-712.04097145,0.0001499,2]
[331318811,1720218644376,-9134.48242967,0.00015,2]
[331318813,1720218644387,-30303.36060294,0.00015,2]
[331318815,1720218644401,-1290.98949998,0.00015,2]
[331318817,1720218644412,-618.33257342,0.00015,2]
[331318944,1720218648457,-887.11588198,0.00015,2]
[331318946,1720218648468,-422.91126348,0.00015,2]
[331318948,1720218648480,-7163.45146306,0.00015,2]
[331318996,1720218648954,-324.55673166,0.00015,2]
[331318998,1720218648965,-325.21435768,0.00015,2]
[331319000,1720218648985,-16011.87488918,0.00015,2]
[331319208,1720218825015,1068.17018491,0.00011199,2]
[331319209,1720218825052,1763.97704749,0.00011199,2]
[331319210,1720218828951,4461.53872289,0.00011199,2]
[331319211,1720218908650,2375.7192167,0.00011199,2]
[331319212,1720218916437,2657.84218386,0.00011199,2]
[331319213,1720218929131,1265.01058332,0.00011199,2]
[331319214,1720218949584,1816.88391842,0.00011199,2]
[331319215,1720219056697,263.71527644,0.00011199,2]
[331319216,1720219063930,308.19482801,0.00011199,2]
[331319217,1720219066071,366.01868755,0.00011199,2]
[331319218,1720219066796,155.0,0.00011199,2]
[331319219,1720219068319,157.032706,0.00025,61]
[331319220,1720219100202,155.0,0.00011199,2]
[331319221,1720219100369,157.5073195,0.00011199,2]
[331319222,1720219103218,280.18113437,0.00011199,2]
[331319223,1720219113177,235.21210657,0.00011199,2]
[331319224,1720219114671,196.39295394,0.00011199,2]
[331319225,1720219119430,347.47664097,0.00011199,2]
[331319227,1720219132539,432.86708779,0.00011199,2]
[331319228,1720219158028,242.09159978,0.00011199,2]
[331319229,1720219169284,155.0,0.00011199,2]
[331319230,1720219495103,155.0,0.00011199,2]
[331319251,1720219832443,-510.86,0.00011843,2]
[331319252,1720219832453,-25.59592939,0.00013319,2]
[331319253,1720219832465,-285.30616098,0.00013319,2]
[331319254,1720219832477,-338.37351225,0.00013319,2]
[331319268,1720219841368,-2967.05823638,0.00013319,2]
[331319269,1720219841378,-500.0,0.00013386,2]
[331319270,1720219841388,-231.43280963,0.00013405,2]
[331319271,1720219841401,-18.56719037,0.00013405,2]
[331319272,1720219841412,-250.0,0.00013441,2]
[331319273,1720219841421,-159.22626939,0.00013472,2]
[331319274,1720219841433,-199.84000987,0.00013472,2]
[331319275,1720219841442,-435.64482264,0.00013482,2]
[331319281,1720219843178,-167.47,0.00013327,2]
[331319282,1720219843188,-1622.11517736,0.00013482,2]
[331319283,1720219843198,-301.74096619,0.00013516,2]
[331319284,1720219843207,-6467.97119229,0.00013567,2]
[331319291,1720219843704,-517.3896,0.00013567,2]
[331319351,1720219845653,-14886.63927411,0.00013567,2]
[331319353,1720219847968,-584.74,0.00013567,2]
[331320204,1720219926703,157.070607,0.00025,62]
[331320208,1720219942016,156.070607,0.00025,63]
[331320213,1720220130316,894.6473847,0.00011199,2]
[331320214,1720220131714,320.51302123,0.00011199,2]
[331320254,1720221007937,-265.76626672,0.00011708,2]
[331321017,1720221201449,228.58998275,0.00011613,2]
[331321018,1720221201489,271.41001725,0.00011613,2]
[331321019,1720221201595,500.0,0.00011614,2]
[331321020,1720221209795,68.17018491,0.00011614,2]
[331321021,1720221495320,206.90651869,0.00011199,2]
[331321023,1720221899410,472.02,0.00010634,2]
[331321024,1720221912934,359.06627926,0.00011199,2]
[331321032,1720221948405,438.44980414,0.00011199,2]
[331321040,1720222194162,-431.82981509,0.00011614,2]
[331321041,1720222194861,-500.0,0.00011614,2]
[331321042,1720222195832,-557.32575553,0.00011708,2]
[331321046,1720222232485,-566.17102447,0.00011708,2]
[331321047,1720222232494,-2318.96,0.00012484,2]
[331321048,1720222232503,-1000.0,0.00012555,2]
[331321049,1720222232512,-220.42,0.00012575,2]